fUST/lending_fUST_20240720
["ID","MTS","AMOUNT","RATE_DAILY","PERIOD"]
[332680435,1721432837323,-20746.06049871,0.00015708,2]
[332680436,1721432837344,-22402.6080623,0.00015709,2]
[332680566,1721433038086,-167.277994,0.00015215,2]
[332680568,1721433038097,-300.0,0.00015708,2]
[332680570,1721433038107,-1058.22710212,0.00015709,2]
[332680575,1721433038431,-11529.76756598,0.00015709,2]
[332680576,1721433038442,-306.0,0.0001589,2]
[332680577,1721433038453,-367.2522507,0.00015953,2]
[332680578,1721433038462,-167.277994,0.00016008,2]
[332680579,1721433038473,-5182.03919946,0.00016087,2]
[332680580,1721433038483,-4809.86456083,0.00016095,2]
[332680581,1721433038493,-153.0,0.000161,2]
[332680582,1721433038502,-153.0,0.000161,2]
[332680583,1721433038512,-1628.0642344,0.0001611,2]
[332680584,1721433038521,-5798.80689268,0.00016228,2]
[332680585,1721433038531,-4398.14245001,0.00016256,2]
[332680619,1721433039965,-1400.66444264,0.00016256,2]
[332680620,1721433039975,-411.2984392,0.00016273,2]
[332680621,1721433039984,-745.43252128,0.00016283,2]
[332680622,1721433040012,-5053.37437137,0.00016283,2]
[332680623,1721433040022,-5798.80689265,0.00016311,2]
[332680624,1721433040031,-736.75996205,0.00016328,2]
[332680625,1721433040040,-2000.0,0.00016328,2]
[332680626,1721433040049,-5798.80689265,0.00016338,2]
[332680627,1721433040060,-2467.16366141,0.00016338,2]
[332680628,1721433040069,-43175.18226903,0.00016348,2]
[332680629,1721433040078,-33474.1015039,0.00016399,2]
[332680630,1721433040088,-621.34378831,0.00016405,2]
[332680631,1721433040097,-33474.1015039,0.0001641,2]
[332680632,1721433040106,-247.65436752,0.00016419,2]
[332680633,1721433040115,-415.33032501,0.00016419,2]
[332680634,1721433040125,-500.0,0.00016419,2]
[332680635,1721433040134,-500.0,0.00016419,2]
[332680636,1721433040143,-500.0,0.00016419,2]
[332680637,1721433040152,-182.09999189,0.00016419,2]
[332680638,1721433040161,-500.0,0.00016419,2]
[332680639,1721433040170,-500.0,0.00016419,2]
[332680640,1721433040179,-500.0,0.00016419,2]
[332680641,1721433040188,-394.07866921,0.00016419,2]
[332680642,1721433040197,-500.0,0.00016419,2]
[332680643,1721433040207,-500.0,0.00016419,2]
[332680644,1721433040216,-448.35347291,0.00016419,2]
[332680645,1721433040225,-500.0,0.00016419,2]
[332680646,1721433040233,-572.34657192,0.00016419,2]
[332680647,1721433040243,-500.0,0.00016419,2]
[332680648,1721433040252,-500.0,0.00016419,2]
[332680649,1721433040261,-500.0,0.00016419,2]
[332680650,1721433040271,-500.0,0.00016419,2]
[332680651,1721433040280,-350.0,0.00016419,2]
[332680652,1721433040289,-500.0,0.00016419,2]
[332680653,1721433040298,-500.0,0.00016419,2]
[332680654,1721433040307,-500.0,0.00016419,2]
[332680655,1721433040318,-51553.5963156,0.0001642,2]
[332680656,1721433040328,-86003.25954155,0.00016428,2]
[332680657,1721433040339,-15131.98063867,0.00016428,2]
[332680699,1721433046105,-153.0,0.00016428,2]
[332680700,1721433194878,5850.0,0.000214,30]
[332680702,1721433792752,150.0,0.000214,30]
[332680703,1721433945402,-1166.81802737,0.00014448,2]
[332680705,1721434036123,-500.0,0.00014406,2]
[332680706,1721434041099,-2387.04621482,0.00014406,2]
[332680707,1721434041134,-226.89772375,0.00014406,2]
[332680708,1721434043252,-344.6922105,0.00014406,2]
[332680709,1721434045094,-1586.97352676,0.00014406,2]
[332680710,1721434046137,-2054.43590078,0.00014406,2]
[332680711,1721434048105,-723.35891699,0.00014406,2]
[332680712,1721434090372,542.28078758,9.999e-05,2]
[332680713,1721434133187,457.79285718,0.0001212,2]
[332680714,1721434136662,7241.0363539,9.999e-05,2]
[332680715,1721434149123,-1476.5884556,0.00014406,2]
[332680716,1721434149147,-1833.18197263,0.00014448,2]
[332680717,1721434149172,-609.6965354,0.00014463,2]
[332680718,1721434149195,-231.9424762,0.00014546,2]
[332680719,1721434149218,-300.0,0.00014554,2]
[332680720,1721434149239,-4969.15240063,0.00014555,2]
[332680721,1721434150108,-3698.88364767,0.00014555,2]
[332680722,1721434150132,-250.0,0.00014653,2]
[332680723,1721434150156,-358.712773,0.00014681,2]
[332680724,1721434150181,-250.0,0.00014694,2]
[332680725,1721434150209,-4175.7958124,0.00014703,2]
[332680726,1721434150235,-250.0,0.00014734,2]
[332680727,1721434150260,-250.0,0.00014774,2]
[332680728,1721434156112,1099.56308859,0.00014369,2]
[332680729,1721434156134,262.44858448,0.00014369,2]
[332680730,1721434168135,-2455.13017703,0.00014369,2]
[332680731,1721434188420,166.666666,9.999e-05,2]
[332680732,1721434188443,78.333334,9.999e-05,2]
[332680765,1721434232044,-166.666666,0.00014795,2]
[332680766,1721434232054,-250.0,0.00014814,2]
[332680767,1721434232064,-250.0,0.00014854,2]
[332680768,1721434232073,-250.0,0.00014895,2]
[332680769,1721434232083,-250.0,0.00014935,2]
[332680770,1721434232097,-250.0,0.00014975,2]
[332680771,1721434232107,-250.0,0.00015015,2]
[332680772,1721434232116,-250.0,0.00015055,2]
[332680773,1721434232127,-250.0,0.00015096,2]
[332680774,1721434232137,-250.0,0.00015136,2]
[332680775,1721434232146,-250.0,0.00015176,2]
[332680776,1721434232156,-250.0,0.00015216,2]
[332680777,1721434232166,-250.0,0.00015256,2]
[332680778,1721434232175,-250.0,0.00015297,2]
[332680779,1721434232185,-250.0,0.00015337,2]
[332680780,1721434232195,-250.0,0.00015377,2]
[332680781,1721434232205,-250.0,0.00015417,2]
[332680782,1721434232214,-567.73879262,0.00015708,2]
[332680783,1721434232223,-1636.98995052,0.00015851,2]
[332680784,1721434232233,-367.2522507,0.00015907,2]
[332680785,1721434232243,-300.0,0.00015957,2]
[332680786,1721434232253,-5302.51874707,0.00015958,2]
[332680787,1721434232262,-1557.35406207,0.00015995,2]
[332680788,1721434232272,-1231.65657271,0.00016038,2]
[332680789,1721434232281,-9585.69121839,0.00016038,2]
[332680790,1721434232298,-13145.14946084,0.00016038,2]
[332680815,1721434238339,-17283.56369141,0.00015953,2]
[332680816,1721434238350,-6819.7802526,0.00016038,2]
[332680817,1721434238359,-1611.5374683,0.00016038,2]
[332680818,1721434238401,-12857.39227828,0.00016038,2]
[332680847,1721434240230,-312.2633,0.00016038,2]
[332680848,1721434240243,-5964.86745213,0.00016038,2]
[332680849,1721434240253,-828.65736599,0.00016159,2]
[332680851,1721434240263,-153.0,0.00016219,2]
[332680853,1721434240273,-153.0,0.00016219,2]
[332680855,1721434240283,-153.0,0.00016219,2]
[332680856,1721434240293,-1408.0,0.00016268,2]
[332680857,1721434240303,-361.4898496,0.00016273,2]
[332680858,1721434240313,-153.0,0.00016301,2]
[332680859,1721434240322,-153.0,0.00016301,2]
[332680860,1721434240332,-153.0,0.00016301,2]
[332680861,1721434240341,-153.0,0.00016301,2]
[332680862,1721434240350,-153.0,0.00016301,2]
[332680863,1721434240361,-153.0,0.00016301,2]
[332680864,1721434240371,-32709.852472,0.00016337,2]
[332680865,1721434240381,-3089.34407009,0.00016338,2]
[332680866,1721434240390,-2220.44729526,0.00016338,2]
[332680867,1721434240400,-2000.0,0.00016338,2]
[332680868,1721434240410,-2892.52402925,0.000164,2]
[332680869,1721434240419,-32709.852472,0.0001641,2]
[332680870,1721434240428,-394.07866921,0.00016419,2]
[332680871,1721434240437,-448.35347291,0.00016419,2]
[332680872,1721434240447,-247.65436752,0.00016419,2]
[332680873,1721434240457,-500.0,0.00016419,2]
[332680874,1721434240467,-415.33032501,0.00016419,2]
[332680875,1721434240476,-500.0,0.00016419,2]
[332680876,1721434240486,-241.97125294,0.00016419,2]
[332680877,1721434240496,-500.0,0.00016419,2]
[332680878,1721434240506,-500.0,0.00016419,2]
[332680879,1721434240515,-500.0,0.00016419,2]
[332680880,1721434240525,-500.0,0.00016419,2]
[332680881,1721434240534,-500.0,0.00016419,2]
[332680882,1721434240544,-500.0,0.00016419,2]
[332680883,1721434240553,-217.9708721,0.00016419,2]
[332680884,1721434240563,-500.0,0.00016419,2]
[332680885,1721434240572,-500.0,0.00016419,2]
[332680886,1721434240581,-500.0,0.00016419,2]
[332680887,1721434240591,-51553.5963156,0.0001642,2]
[332680888,1721434240600,-81994.85934991,0.00016428,2]
[332680907,1721434246174,-153.0,0.00016301,2]
[332680908,1721434246184,-114264.25548209,0.00016428,2]
[332680909,1721434246193,-500.0,0.00016438,2]
[332680910,1721434246203,-500.0,0.00016438,2]
[332680911,1721434246212,-500.0,0.00016438,2]
[332680912,1721434246222,-500.0,0.00016438,2]
[332680913,1721434246232,-500.0,0.00016438,2]
[332680914,1721434246242,-500.0,0.00016438,2]
[332680915,1721434246253,-509.46276478,0.00016438,2]
[332680916,1721434246264,-500.0,0.00016438,2]
[332680917,1721434246273,-500.0,0.00016438,2]
[332680918,1721434246282,-717.51,0.00016438,2]
[332680919,1721434246291,-500.0,0.00016438,2]
[332680920,1721434246300,-455.99599361,0.00016438,2]
[332680921,1721434246310,-500.0,0.00016438,2]
[332680922,1721434246319,-500.0,0.00016438,2]
[332680923,1721434246328,-500.0,0.00016438,2]
[332680924,1721434246337,-265.26187722,0.00016438,2]
[332680925,1721434277629,119.53648897,0.0001212,2]
[332680926,1721434277650,245.0,0.0001212,2]
[332680927,1721434277673,203.20230365,0.0001212,2]
[332680928,1721434281498,46.80050242,0.0001212,2]
[332680929,1721434281534,4827.62559998,0.0001212,2]
[332680930,1721434283419,201.31902623,0.0001212,2]
[332680931,1721434288109,12794.34943226,0.0001212,2]
[332680936,1721434425314,154.79103211,9.999e-05,2]
[332680937,1721434433723,2850.0,0.000214,30]
[332680939,1721434806664,753.95,0.00010959,2]
[332680942,1721434846709,12825.66988971,0.00010959,2]
[332680943,1721434846746,6608.48357225,0.00010959,2]
[332680944,1721434879936,610.43790944,0.00010959,2]
[332680945,1721434894727,19434.15346196,0.00013283,2]
[332680946,1721434909707,19434.15346196,0.00013283,2]
[332680947,1721434921734,2522.29159439,0.00013283,2]
[332680948,1721434921761,1250.80184625,0.00013283,2]
[332680978,1721435000253,150.0,0.000214,30]
[332680979,1721435033199,19434.15346196,0.00013283,2]
[332680980,1721435037664,424.543233,0.00013985,2]
[332680981,1721435112888,824.2735298,0.00013757,2]
[332680982,1721435122202,14481.50298134,0.00013985,2]
[332680984,1721435153017,366031.60364632,0.00013985,2]
[332680985,1721435156147,-193.40813,0.00014366,2]
[332680986,1721435156172,-193.40813,0.00014406,2]
[332680987,1721435156197,-193.40813,0.00014445,2]
[332680988,1721435156224,-193.40813,0.00014485,2]
[332680989,1721435156250,-193.40813,0.00014524,2]
[332680990,1721435156275,-6.82109212,0.00014563,2]
[332680991,1721435157139,154.74467129,9.999e-05,2]
[332680992,1721435172133,154.74467129,9.999e-05,2]
[332680993,1721435202149,3000.0,0.00013819,2]
[332680994,1721435225104,-186.58703788,0.00014563,2]
[332680995,1721435225127,-149.02581483,0.00014603,2]
[332680998,1721435235145,-44.38231517,0.00014603,2]
[332680999,1721435235170,-193.40813,0.00014642,2]
[332681000,1721435235192,-193.40813,0.00014682,2]
[332681001,1721435235212,-1638.39181986,0.00014691,2]
[332681002,1721435235234,-300.0,0.00014698,2]
[332681003,1721435235255,-543.80170077,0.00014699,2]
[332681004,1721435242136,-500.0,0.00014699,2]
[332681005,1721435245098,-750.0,0.00014699,2]
[332681006,1721435247090,-17492.64311853,0.00014699,2]
[332681007,1721435247114,-193.40813,0.00014721,2]
[332681008,1721435247137,-193.40813,0.0001476,2]
[332681009,1721435247157,-166.666666,0.00014795,2]
[332681010,1721435247180,-193.40813,0.000148,2]
[332681011,1721435247202,-193.40813,0.00014839,2]
[332681012,1721435247224,-193.40813,0.00014879,2]
[332681013,1721435247245,-193.40813,0.00014918,2]
[332681014,1721435247268,-193.40813,0.00014957,2]
[332681015,1721435247290,-193.40813,0.00014997,2]
[332681016,1721435247310,-2334.38870077,0.00015,2]
[332681017,1721435247330,-1107.38930569,0.00015,2]
[332681018,1721435247351,-1261.66449257,0.00015,2]
[332681019,1721435247372,-193.40813,0.00015036,2]
[332681020,1721435247398,-193.40813,0.00015076,2]
[332681021,1721435247435,-193.40813,0.00015115,2]
[332681022,1721435247459,-918.64334807,0.00015712,2]
[332681023,1721435247483,-159.8885354,0.00015746,2]
[332681024,1721435247508,-1219.5216405,0.00015751,2]
[332681025,1721435247533,-1571.19517611,0.00015751,2]
[332681026,1721435247559,-589.62428954,0.00015851,2]
[332681027,1721435247583,-418.97005618,0.00015954,2]
[332681028,1721435247605,-3100.57389255,0.00016038,2]
[332681029,1721435247630,-293.756678,0.00016082,2]
[332681030,1721435247653,-941.25374337,0.0001611,2]
[332681031,1721435247678,-2353.63755527,0.00016159,2]
[332681032,1721435247710,-1628.0642344,0.00016159,2]
[332681033,1721435247732,-1628.0642344,0.00016159,2]
[332681034,1721435247754,-364.154439,0.00016164,2]
[332681035,1721435247774,-153.0,0.00016164,2]
[332681036,1721435247796,-413.0926564,0.00016164,2]
[332681037,1721435247817,-153.0,0.00016164,2]
[332681038,1721435247839,-153.0,0.00016164,2]
[332681039,1721435247861,-293.756678,0.00016164,2]
[332681040,1721435247882,-293.756678,0.00016164,2]
[332681041,1721435247902,-267.3642005,0.00016164,2]
[332681042,1721435247925,-150.60173835,0.00016166,2]
[332681043,1721435247949,-420.0,0.00016167,2]
[332681044,1721435247974,-5302.51874707,0.00016229,2]
[332681045,1721435247995,-5660.43706542,0.00016241,2]
[332681046,1721435248016,-5660.4370654,0.00016265,2]
[332681047,1721435248037,-665.8412937,0.00016273,2]
[332681048,1721435248059,-5660.4370654,0.0001629,2]
[332681049,1721435248082,-263.29031622,0.00016309,2]
[332681050,1721435248103,-599.9748975,0.00016309,2]
[332681051,1721435248126,-544.15753876,0.00016309,2]
[332681052,1721435248151,-5660.4370654,0.00016314,2]
[332681053,1721435248178,-5660.4370654,0.00016338,2]
[332681054,1721435248201,-1788.69550373,0.00016338,2]
[332681055,1721435249090,-818.00899077,0.00016338,2]
[332681056,1721435249111,-1945.47989268,0.00016338,2]
[332681057,1721435249132,-307.39520655,0.00016338,2]
[332681058,1721435253147,-166.666668,0.00016309,2]
[332681064,1721435412811,819.26,0.00010959,2]
[332681151,1721435438488,-3022.2139034,0.0001549,2]
[332681152,1721435438498,-504.0,0.00015886,2]
[332681153,1721435438507,-154.88921117,0.00016095,2]
[332681154,1721435438517,-367.2522507,0.00016166,2]
[332681155,1721435438526,-332.9206469,0.00016273,2]
[332681156,1721435438536,-736.75996205,0.00016308,2]
[332681157,1721435438546,-287.51223328,0.00016309,2]
[332681158,1721435438557,-243.23664462,0.00016309,2]
[332681159,1721435438566,-300.0,0.00016337,2]
[332681160,1721435438575,-48470.86099382,0.00016338,2]
[332681161,1721435438584,-2000.0,0.00016338,2]
[332681162,1721435438594,-921.89752303,0.00016364,2]
[332681163,1721435438604,-2892.52402925,0.000164,2]
[332681164,1721435438613,-39057.7950266,0.0001641,2]
[332681165,1721435438623,-260.364544,0.00016418,2]
[332681166,1721435438634,-260.364544,0.00016418,2]
[332681167,1721435438644,-151.0,0.00016418,2]
[332681168,1721435438653,-151.0,0.00016418,2]
[332681169,1721435438663,-51553.5963146,0.0001642,2]
[332681170,1721435438673,-500.0,0.00016427,2]
[332681171,1721435438683,-500.0,0.00016427,2]
[332681172,1721435438693,-166.99704497,0.00016427,2]
[332681173,1721435438703,-500.0,0.00016427,2]
[332681174,1721435438712,-353.79195359,0.00016427,2]
[332681175,1721435438722,-528.97522622,0.00016427,2]
[332681176,1721435438732,-500.0,0.00016427,2]
[332681177,1721435438741,-500.0,0.00016427,2]
[332681178,1721435438751,-195.24534591,0.00016427,2]
[332681179,1721435438761,-277.25524173,0.00016427,2]
[332681180,1721435438771,-500.0,0.00016427,2]
[332681181,1721435438781,-500.0,0.00016427,2]
[332681182,1721435438791,-500.0,0.00016427,2]
[332681183,1721435438801,-500.0,0.00016427,2]
[332681184,1721435438810,-500.0,0.00016427,2]
[332681185,1721435438820,-500.0,0.00016427,2]
[332681186,1721435438829,-500.0,0.00016427,2]
[332681187,1721435438838,-500.0,0.00016427,2]
[332681188,1721435438848,-341.97125294,0.00016427,2]
[332681189,1721435438857,-500.0,0.00016427,2]
[332681190,1721435438867,-500.0,0.00016427,2]
[332681191,1721435438880,-500.0,0.00016427,2]
[332681192,1721435438890,-500.0,0.00016427,2]
[332681193,1721435438899,-500.0,0.00016427,2]
[332681194,1721435438908,-500.0,0.00016427,2]
[332681195,1721435438918,-442.3047199,0.00016427,2]
[332681196,1721435438928,-500.0,0.00016427,2]
[332681197,1721435438938,-500.0,0.00016427,2]
[332681198,1721435438947,-500.0,0.00016427,2]
[332681199,1721435438958,-500.0,0.00016427,2]
[332681200,1721435438968,-500.0,0.00016427,2]
[332681201,1721435438977,-500.0,0.00016427,2]
[332681202,1721435438987,-234346.77016,0.00016428,2]
[332681203,1721435438998,-1408.0,0.00016434,2]
[332681204,1721435439008,-150.0,0.00016434,2]
[332681205,1721435439021,-500.0,0.00016438,2]
[332681206,1721435439032,-500.0,0.00016438,2]
[332681207,1721435439043,-500.0,0.00016438,2]
[332681208,1721435439055,-500.0,0.00016438,2]
[332681209,1721435439065,-500.0,0.00016438,2]
[332681210,1721435439075,-500.0,0.00016438,2]
[332681211,1721435439085,-500.0,0.00016438,2]
[332681212,1721435439094,-354.8589622,0.00016438,2]
[332681213,1721435439105,-500.0,0.00016438,2]
[332681214,1721435439114,-500.0,0.00016438,2]
[332681215,1721435439124,-881.86,0.00016438,2]
[332681216,1721435439135,-500.0,0.00016438,2]
[332681217,1721435439144,-516.92728213,0.00016438,2]
[332681218,1721435439154,-500.0,0.00016438,2]
[332681219,1721435439164,-500.0,0.00016438,2]
[332681220,1721435439174,-402.243462,0.00016438,2]
[332681221,1721435439184,-1166.73,0.00016438,2]
[332681222,1721435439193,-500.0,0.00016438,2]
[332681223,1721435439203,-459.79250006,0.00016438,2]
[332681224,1721435439212,-786.29,0.00016438,2]
[332681225,1721435439222,-500.0,0.00016438,2]
[332681226,1721435439231,-921.61,0.00016438,2]
[332681227,1721435439240,-500.0,0.00016438,2]
[332681228,1721435439250,-500.0,0.00016438,2]
[332681229,1721435439260,-500.0,0.00016438,2]
[332681230,1721435439270,-585.57,0.00016438,2]
[332681231,1721435439280,-500.0,0.00016438,2]
[332681232,1721435439290,-677.45,0.00016438,2]
[332681233,1721435439302,-500.0,0.00016438,2]
[332681234,1721435439311,-500.0,0.00016438,2]
[332681235,1721435439321,-500.0,0.00016438,2]
[332681236,1721435439331,-500.0,0.00016438,2]
[332681237,1721435439340,-810.25,0.00016438,2]
[332681238,1721435439351,-500.0,0.00016438,2]
[332681239,1721435439361,-500.0,0.00016438,2]
[332681240,1721435439371,-500.0,0.00016438,2]
[332681241,1721435439380,-500.0,0.00016438,2]
[332681242,1721435439391,-500.0,0.00016438,2]
[332681243,1721435439401,-566.04,0.00016438,2]
[332681244,1721435439410,-500.0,0.00016438,2]
[332681245,1721435439420,-500.0,0.00016438,2]
[332681246,1721435439430,-500.0,0.00016438,2]
[332681247,1721435439439,-606.92723811,0.00016438,2]
[332681248,1721435439449,-500.0,0.00016438,2]
[332681249,1721435439458,-500.0,0.00016438,2]
[332681250,1721435439468,-500.0,0.00016438,2]
[332681251,1721435439477,-500.0,0.00016438,2]
[332681252,1721435439486,-500.0,0.00016438,2]
[332681253,1721435439496,-1231.06,0.00016438,2]
[332681254,1721435439506,-608.51,0.00016438,2]
[332681255,1721435439515,-500.0,0.00016438,2]
[332681256,1721435439525,-500.0,0.00016438,2]
[332681257,1721435439534,-500.0,0.00016438,2]
[332681258,1721435439544,-502.47248152,0.00016438,2]
[332681259,1721435439555,-500.0,0.00016438,2]
[332681260,1721435439565,-500.0,0.00016438,2]
[332681261,1721435439574,-500.0,0.00016438,2]
[332681262,1721435439584,-500.0,0.00016438,2]
[332681263,1721435439594,-509.32613113,0.00016438,2]
[332681264,1721435439603,-505.7498757,0.00016438,2]
[332681265,1721435439612,-196.16186763,0.00016438,2]
[332681266,1721435439622,-500.0,0.00016438,2]
[332681267,1721435439632,-500.0,0.00016438,2]
[332681268,1721435439642,-500.0,0.00016438,2]
[332681269,1721435439652,-500.0,0.00016438,2]
[332681270,1721435439662,-633.87645541,0.00016438,2]
[332681271,1721435439671,-500.0,0.00016438,2]
[332681272,1721435439682,-500.0,0.00016438,2]
[332681273,1721435439692,-500.0,0.00016438,2]
[332681274,1721435439702,-500.0,0.00016438,2]
[332681275,1721435439712,-274.12282713,0.00016438,2]
[332681276,1721435439721,-500.0,0.00016438,2]
[332681277,1721435439731,-500.0,0.00016438,2]
[332681278,1721435439740,-500.0,0.00016438,2]
[332681279,1721435439750,-500.0,0.00016438,2]
[332681280,1721435439759,-769.2,0.00016438,2]
[332681281,1721435439769,-354.06794769,0.00016438,2]
[332681282,1721435439778,-1043.06,0.00016438,2]
[332681283,1721435439787,-500.0,0.00016438,2]
[332681284,1721435439797,-500.0,0.00016438,2]
[332681285,1721435439809,-304.57578418,0.00016438,2]
[332681286,1721435439818,-500.0,0.00016438,2]
[332681287,1721435439828,-500.0,0.00016438,2]
[332681288,1721435439838,-500.0,0.00016438,2]
[332681289,1721435439847,-500.0,0.00016438,2]
[332681290,1721435439857,-505.6,0.00016438,2]
[332681291,1721435439867,-556.02474155,0.00016438,2]
[332681292,1721435439877,-500.0,0.00016438,2]
[332681293,1721435439886,-500.0,0.00016438,2]
[332681294,1721435439896,-500.0,0.00016438,2]
[332681295,1721435439906,-505.00026679,0.00016438,2]
[332681296,1721435439916,-551.14,0.00016438,2]
[332681297,1721435439925,-500.0,0.00016438,2]
[332681298,1721435439935,-500.0,0.00016438,2]
[332681299,1721435439944,-579.34,0.00016438,2]
[332681300,1721435439954,-500.0,0.00016438,2]
[332681301,1721435439963,-500.0,0.00016438,2]
[332681302,1721435439973,-2622.49,0.00016438,2]
[332681303,1721435439983,-500.0,0.00016438,2]
[332681304,1721435439992,-641.07583073,0.00016438,2]
[332681305,1721435440002,-660.88,0.00016438,2]
[332681306,1721435440012,-578.92,0.00016438,2]
[332681307,1721435440022,-592.03038044,0.00016438,2]
[332681308,1721435440031,-500.0,0.00016438,2]
[332681309,1721435440041,-500.0,0.00016438,2]
[332681310,1721435440051,-500.00313708,0.00016438,2]
[332681311,1721435440060,-3322.03,0.00016438,2]
[332681313,1721435440070,-406.22538627,0.00016438,2]
[332681315,1721435440080,-500.0,0.00016438,2]
[332681316,1721435440089,-703.26,0.00016438,2]
[332681317,1721435440099,-910.45,0.00016438,2]
[332681318,1721435440310,-513.81,0.00016438,2]
[332681319,1721435440321,-1033.66,0.00016438,2]
[332681320,1721435440330,-500.0,0.00016438,2]
[332681321,1721435440340,-500.0,0.00016438,2]
[332681322,1721435440350,-566.11,0.00016438,2]
[332681323,1721435440360,-500.0,0.00016438,2]
[332681324,1721435440369,-450.57053984,0.00016438,2]
[332681325,1721435440379,-500.0,0.00016438,2]
[332681326,1721435440388,-500.0,0.00016438,2]
[332681327,1721435440398,-905.29,0.00016438,2]
[332681328,1721435440407,-500.0,0.00016438,2]
[332681329,1721435440417,-2351.84,0.00016438,2]
[332681330,1721435440427,-500.0,0.00016438,2]
[332681331,1721435440436,-500.0,0.00016438,2]
[332681332,1721435440446,-500.0,0.00016438,2]
[332681333,1721435440456,-500.0,0.00016438,2]
[332681334,1721435440465,-500.0,0.00016438,2]
[332681335,1721435440475,-500.0,0.00016438,2]
[332681336,1721435440484,-421.71656142,0.00016438,2]
[332681337,1721435440494,-685.46,0.00016438,2]
[332681338,1721435440504,-530.72723451,0.00016438,2]
[332681339,1721435440514,-500.0,0.00016438,2]
[332681340,1721435440523,-500.0,0.00016438,2]
[332681341,1721435440533,-500.0,0.00016438,2]
[332681342,1721435440542,-508.95478055,0.00016438,2]
[332681343,1721435440552,-500.0,0.00016438,2]
[332681344,1721435440561,-1131.94,0.00016438,2]
[332681345,1721435440570,-500.0,0.00016438,2]
[332681346,1721435440580,-844.35,0.00016438,2]
[332681347,1721435440590,-4434.81,0.00016438,2]
[332681348,1721435440600,-500.0,0.00016438,2]
[332681349,1721435440610,-1389.76,0.00016438,2]
[332681350,1721435440621,-500.0,0.00016438,2]
[332681351,1721435440630,-500.0,0.00016438,2]
[332681352,1721435440641,-514.10355527,0.00016438,2]
[332681353,1721435440653,-789.24,0.00016438,2]
[332681354,1721435440664,-500.0,0.00016438,2]
[332681355,1721435440673,-672.73,0.00016438,2]
[332681356,1721435440685,-1566.23,0.00016438,2]
[332681357,1721435440694,-546.47,0.00016438,2]
[332681358,1721435440704,-721.79,0.00016438,2]
[332681359,1721435440714,-500.0,0.00016438,2]
[332681360,1721435440724,-500.0,0.00016438,2]
[332681361,1721435440735,-500.0,0.00016438,2]
[332681362,1721435440745,-500.0,0.00016438,2]
[332681363,1721435440756,-500.0,0.00016438,2]
[332681364,1721435440767,-500.0,0.00016438,2]
[332681365,1721435440776,-500.0,0.00016438,2]
[332681366,1721435440786,-500.0,0.00016438,2]
[332681367,1721435440796,-500.0,0.00016438,2]
[332681368,1721435440806,-500.0,0.00016438,2]
[332681369,1721435440816,-500.0,0.00016438,2]
[332681370,1721435440826,-500.0,0.00016438,2]
[332681371,1721435440837,-500.0,0.00016438,2]
[332681372,1721435440847,-618.69,0.00016438,2]
[332681373,1721435440858,-447.13165735,0.00016438,2]
[332681374,1721435440869,-500.0,0.00016438,2]
[332681375,1721435440885,-500.0,0.00016438,2]
[332681376,1721435440895,-515.29099751,0.00016438,2]
[332681377,1721435440904,-500.0,0.00016438,2]
[332681378,1721435440913,-500.0,0.00016438,2]
[332681379,1721435440924,-500.0,0.00016438,2]
[332681380,1721435440933,-656.4,0.00016438,2]
[332681381,1721435440943,-500.0,0.00016438,2]
[332681382,1721435440954,-500.0,0.00016438,2]